bitfinex-derivatives/quotes_BTCF0:USTF0_20250129
["timestamp","ask_amount","ask_price","bid_price","bid_amount"]
[1738176327809,0.34110657,102770.0,102760.0,0.18993378]
[1738176328509,0.34110657,102770.0,102760.0,0.22993378]
[1738176329823,0.34110657,102770.0,102760.0,0.18993378]
[1738176330011,0.70190657,102770.0,102760.0,0.18993378]
[1738176330814,0.70190657,102770.0,102760.0,0.23993378]
[1738176331222,0.70190657,102770.0,102760.0,0.18993378]
[1738176334522,0.70190657,102770.0,102760.0,0.23993378]
[1738176335127,0.34110657,102770.0,102760.0,0.79538878]
[1738176335511,0.34110657,102770.0,102760.0,0.18993378]
[1738176335716,0.34110657,102770.0,102760.0,0.60073378]
[1738176336515,0.34110657,102770.0,102760.0,0.55073378]
[1738176336820,0.34110657,102770.0,102760.0,0.18993378]
[1738176337028,0.34110657,102770.0,102760.0,0.60073378]
[1738176346624,0.250236,102770.0,102760.0,0.79538878]
[1738176346823,0.250236,102770.0,102760.0,0.60073378]
[1738176348835,0.30990605,102770.0,102760.0,0.60073378]
[1738176349623,0.30990605,102770.0,102760.0,0.65503378]
[1738176351731,0.30990605,102770.0,102760.0,0.60073378]
[1738176354237,0.47157022,102780.0,102760.0,0.85505383]
[1738176354437,0.47157022,102780.0,102770.0,0.3608]
[1738176354733,0.47157022,102780.0,102770.0,0.4608]
[1738176354940,0.37107022,102780.0,102770.0,0.4608]
[1738176355434,0.37307022,102780.0,102770.0,0.4608]
[1738176356637,0.40431218,102780.0,102770.0,0.4608]
[1738176357735,0.11877617,102780.0,102770.0,0.655436]
[1738176358839,0.00214613,102780.0,102770.0,0.655436]
[1738176361645,0.00214613,102780.0,102770.0,0.655436]
[1738176364034,0.28767514,102780.0,102770.0,0.4608]
[1738176364241,0.194636,102770.0,102760.0,0.55073378]
[1738176364546,0.194636,102770.0,102760.0,0.75073378]
[1738176364547,0.28554801,102770.0,102760.0,0.75073378]
[1738176364744,0.241336,102770.0,102760.0,0.75073378]
[1738176365242,0.0467,102770.0,102760.0,1.03630079]
[1738176365450,0.29407013,102780.0,102760.0,1.08270079]
[1738176365639,0.29407013,102780.0,102770.0,0.3608]
[1738176365835,0.29407013,102780.0,102770.0,0.4608]
[1738176365836,0.38498214,102780.0,102770.0,0.4608]
[1738176366339,0.38298214,102780.0,102770.0,0.4608]
[1738176367145,0.38498214,102780.0,102770.0,0.4608]
[1738176368739,0.38498214,102780.0,102770.0,0.1]
[1738176368946,0.38498214,102780.0,102770.0,0.4608]
[1738176369649,0.05324613,102780.0,102770.0,0.4608]
[1738176369832,0.05324613,102780.0,102770.0,0.655436]
[1738176370147,0.24786313,102780.0,102770.0,0.4608]
[1738176370348,0.33877514,102780.0,102770.0,0.4608]
[1738176370546,0.24786313,102780.0,102770.0,0.4608]
[1738176372745,0.29596313,102780.0,102770.0,0.4608]
[1738176376055,0.38687514,102780.0,102770.0,0.4608]
[1738176377854,0.29596313,102780.0,102770.0,0.4608]
[1738176378450,0.10134613,102780.0,102770.0,0.655436]
[1738176378657,0.10134613,102780.0,102770.0,0.71508931]
[1738176379362,0.16099944,102780.0,102770.0,0.655436]
[1738176379660,0.10134613,102780.0,102770.0,0.655436]
[1738176380048,0.22065275,102780.0,102770.0,0.4608]
[1738176380353,0.41526975,102780.0,102770.0,0.4608]
[1738176381057,0.22065275,102780.0,102760.0,0.28633378]
[1738176381259,0.30178931,102770.0,102760.0,0.86713378]
[1738176384360,0.30178931,102770.0,102760.0,0.81713378]
[1738176387673,0.30178931,102770.0,102760.0,0.87678709]
[1738176388067,0.30178931,102770.0,102760.0,0.81713378]
[1738176388664,0.11677617,102780.0,102760.0,0.9364404]
[1738176388866,0.11677617,102780.0,102770.0,0.61508931]
[1738176389066,0.11677617,102780.0,102770.0,0.5808]
[1738176389067,0.37104648,102780.0,102770.0,0.5808]
[1738176389469,0.43069979,102780.0,102770.0,0.5808]
[1738176389789,0.37104648,102780.0,102770.0,0.5808]
[1738176389979,0.43069979,102780.0,102770.0,0.5808]
[1738176390275,0.37304648,102780.0,102770.0,0.5808]
[1738176390472,0.194636,102770.0,102760.0,0.69313378]
[1738176390674,0.25428931,102770.0,102760.0,0.83363378]
[1738176391069,0.35232644,102780.0,102760.0,1.08794009]
[1738176391269,0.35232644,102780.0,102770.0,0.3608]
[1738176391469,0.35232644,102780.0,102770.0,0.4108]
[1738176392772,0.40930317,102780.0,102770.0,0.4108]
[1738176392971,0.40730317,102780.0,102770.0,0.4108]
[1738176393779,0.40930317,102780.0,102770.0,0.4108]
[1738176393979,0.40930317,102780.0,102770.0,0.3608]
[1738176394179,0.40930317,102780.0,102770.0,0.4108]
[1738176398577,0.11877617,102780.0,102770.0,0.69634972]
[1738176401583,0.14516321,102790.0,102780.0,0.194617]
[1738176401771,0.2241347,102800.0,102790.0,0.194598]
[1738176401972,0.43585687,102820.0,102810.0,0.194561]
[1738176402171,0.63039887,102820.0,102810.0,0.7216]
[1738176402674,0.72689887,102820.0,102810.0,0.7216]
[1738176402874,0.194561,102810.0,102800.0,0.36094613]
[1738176403072,0.36951029,102810.0,102800.0,0.36094613]
[1738176403477,0.36951029,102810.0,102800.0,0.45185985]
[1738176404077,0.17494929,102810.0,102800.0,0.69643985]
[1738176404479,0.17494929,102810.0,102800.0,0.74703985]
[1738176405070,0.17494929,102810.0,102800.0,0.74803985]
[1738176405675,0.17494929,102810.0,102800.0,0.74903985]
[1738176407383,0.245447,102820.0,102800.0,0.75891603]
[1738176407582,0.245447,102820.0,102810.0,0.3608]
[1738176408579,0.33636072,102820.0,102810.0,0.3608]
[1738176408982,0.14181372,102820.0,102810.0,0.4608]
[1738176409184,0.19467213,102830.0,102810.0,0.74627472]
[1738176409382,0.00014613,102830.0,102820.0,0.555342]
[1738176409585,0.00014613,102830.0,102820.0,0.89615572]
[1738176410980,0.00114613,102830.0,102820.0,0.89615572]
[1738176411582,0.00114613,102830.0,102820.0,0.94365572]
[1738176412484,0.00114613,102830.0,102820.0,0.852742]
[1738176414285,0.00114613,102830.0,102820.0,0.94365572]
[1738176414783,0.00114613,102830.0,102820.0,0.86224737]
[1738176416080,0.45285985,102830.0,102800.0,0.36094613]
[1738176416289,0.28547472,102810.0,102800.0,0.18014613]
[1738176416487,0.28547472,102810.0,102800.0,0.00014613]
[1738176416989,0.28547472,102810.0,102800.0,0.37051129]
[1738176417688,0.28547472,102810.0,102800.0,0.37151129]
[1738176419282,0.28547472,102810.0,102800.0,0.37251129]
[1738176419682,0.28547472,102810.0,102800.0,0.01171129]
[1738176420387,0.28547472,102810.0,102800.0,0.37251129]
[1738176421095,0.37638844,102810.0,102800.0,0.01171129]
[1738176421279,0.73718844,102810.0,102800.0,0.00214613]
[1738176421685,0.79030844,102810.0,102800.0,0.00214613]
[1738176421886,0.42950844,102810.0,102800.0,0.00214613]
[1738176422192,0.33859472,102810.0,102800.0,0.00214613]
[1738176422388,0.33859472,102810.0,102800.0,0.36294613]
[1738176422894,0.33859472,102810.0,102800.0,0.00214613]
[1738176423195,0.28547472,102810.0,102800.0,0.00214613]
[1738176423388,0.28547472,102810.0,102800.0,0.36294613]
[1738176423988,0.28547472,102810.0,102800.0,0.55752613]
[1738176423989,0.194561,102810.0,102800.0,0.55752613]
[1738176424187,0.28547472,102810.0,102800.0,0.55752613]
[1738176424383,0.28547472,102810.0,102800.0,0.60752613]
[1738176424587,0.43206372,102820.0,102800.0,0.60752613]
[1738176424789,0.28547472,102810.0,102800.0,0.36294613]
[1738176425386,0.28547472,102810.0,102800.0,0.01193875]
[1738176425592,0.28547472,102810.0,102800.0,0.37173875]
[1738176425898,0.28547472,102810.0,102800.0,0.37073875]
[1738176426090,0.28547472,102810.0,102800.0,0.42073875]
[1738176426591,0.28547472,102810.0,102800.0,0.42173875]
[1738176427299,0.28547472,102810.0,102800.0,0.42273875]
[1738176437492,0.28547472,102810.0,102800.0,0.06193875]
[1738176437691,0.28547472,102810.0,102800.0,0.42273875]
[1738176437895,0.194561,102810.0,102800.0,0.61731875]
[1738176438096,0.28547472,102810.0,102800.0,0.61731875]
[1738176438500,0.194561,102810.0,102800.0,0.61731875]
[1738176438706,0.51908409,102820.0,102810.0,0.194561]
[1738176438907,0.51908409,102820.0,102810.0,0.21]
[1738176439797,0.51908409,102820.0,102810.0,0.5708]
[1738176439997,0.51908409,102820.0,102810.0,0.765361]
[1738176442208,0.43206272,102820.0,102810.0,0.765361]
[1738176444696,0.43206272,102820.0,102810.0,0.21]
[1738176445194,0.43206272,102820.0,102810.0,0.5708]
[1738176446705,0.43206272,102820.0,102810.0,0.21]
[1738176448298,0.51908409,102820.0,102810.0,0.5708]
[1738176448499,0.51908409,102820.0,102810.0,0.765361]
[1738176448810,0.08702137,102820.0,102810.0,0.85627472]
[1738176449107,0.08702137,102820.0,102810.0,0.95327472]
[1738176450898,0.08702137,102820.0,102810.0,1.04418844]
[1738176452810,0.08702137,102820.0,102810.0,0.95327472]
[1738176453411,0.08702137,102820.0,102810.0,1.04418844]
[1738176453708,0.14546108,102830.0,102820.0,0.194542]
[1738176453709,0.00014613,102830.0,102820.0,0.194542]
[1738176453908,0.00014613,102830.0,102820.0,0.86625572]
[1738176455013,0.00114613,102830.0,102820.0,0.86625572]
[1738176456307,0.00114613,102830.0,102820.0,0.5808]
[1738176456513,0.194542,102820.0,102810.0,0.4578]
[1738176456712,0.194542,102820.0,102810.0,0.5278]
[1738176456713,0.33415572,102820.0,102810.0,0.5278]
[1738176456909,0.33415572,102820.0,102810.0,0.07]
[1738176457109,0.38045572,102820.0,102810.0,0.07]
[1738176458109,0.38045572,102820.0,102800.0,1.05043015]
[1738176458308,0.38045572,102820.0,102800.0,1.26043015]
[1738176458515,0.289542,102820.0,102800.0,1.26043015]
[1738176459110,0.289542,102820.0,102810.0,0.3608]
[1738176459308,0.289542,102820.0,102810.0,0.294561]
[1738176459512,0.289542,102820.0,102800.0,1.05042415]
[1738176459712,0.289542,102820.0,102800.0,1.24042415]
[1738176460417,0.194561,102810.0,102800.0,1.24042415]
[1738176460819,0.38046372,102820.0,102800.0,1.14951043]
[1738176461118,0.38046372,102820.0,102810.0,0.3608]
[1738176461319,0.38046372,102820.0,102810.0,0.4108]
[1738176461710,0.28955,102820.0,102810.0,0.605361]
[1738176463320,0.28955,102820.0,102810.0,0.4108]
[1738176463618,0.28955,102820.0,102810.0,0.605361]
[1738176467015,0.38046372,102820.0,102810.0,0.4108]
[1738176467222,0.38046372,102820.0,102810.0,0.05]
[1738176467416,0.194561,102810.0,102800.0,0.00993875]
[1738176467614,0.28547472,102810.0,102800.0,0.00993875]
[1738176468226,0.28547472,102810.0,102800.0,0.61531875]
[1738176468610,0.28547472,102810.0,102800.0,0.61631875]
[1738176469915,0.194561,102810.0,102800.0,0.61631875]
[1738176470122,0.23361372,102820.0,102800.0,0.61631875]
[1738176470318,0.42816872,102820.0,102800.0,0.61631875]
[1738176470822,0.42816872,102820.0,102810.0,0.555361]
[1738176471028,0.42816872,102820.0,102810.0,0.765361]
[1738176471223,0.42816872,102820.0,102810.0,0.404561]
[1738176471427,0.42816872,102820.0,102810.0,0.765361]
[1738176471614,0.18731372,102820.0,102810.0,0.765361]
[1738176471818,0.37261722,102830.0,102810.0,0.66171372]
[1738176472023,0.09091372,102820.0,102810.0,0.765357]
[1738176472223,0.50355465,102830.0,102810.0,0.765357]
[1738176472224,0.59446837,102830.0,102820.0,0.194542]
[1738176472425,0.59446837,102830.0,102820.0,0.294542]
[1738176474227,0.59546837,102830.0,102820.0,0.294542]
[1738176474823,0.59546837,102830.0,102820.0,0.194542]
[1738176475028,0.59546837,102830.0,102810.0,0.4573]
[1738176475222,0.09091372,102820.0,102810.0,0.871847]
[1738176476423,0.49642089,102830.0,102820.0,0.194542]
[1738176476424,0.22653461,102830.0,102820.0,0.194542]
[1738176476627,0.22653461,102830.0,102820.0,0.384542]
[1738176476830,0.42105761,102830.0,102820.0,0.745342]
[1738176479027,0.33378285,102830.0,102820.0,0.745342]
[1738176479231,0.13925985,102830.0,102820.0,0.745342]
[1738176482027,0.33378285,102830.0,102820.0,0.745342]
[1738176482226,0.33378285,102830.0,102810.0,0.4573]
[1738176482227,0.194542,102820.0,102810.0,0.651855]
[1738176482432,0.64625572,102820.0,102810.0,0.481055]
[1738176482831,0.09091372,102820.0,102810.0,0.841855]
[1738176483032,0.33378885,102830.0,102810.0,0.6473]
[1738176483237,0.33378885,102830.0,102820.0,0.555342]
[1738176483434,0.33278885,102830.0,102820.0,0.755342]
[1738176483643,0.13825985,102830.0,102820.0,0.755342]
[1738176484247,0.00014613,102830.0,102820.0,0.755342]
[1738176485048,0.00014613,102830.0,102820.0,0.802342]
[1738176485841,0.08742089,102830.0,102820.0,0.802342]
[1738176486045,0.08842089,102830.0,102820.0,0.802342]
[1738176487337,0.11635757,102840.0,102820.0,0.69871372]
[1738176487544,0.11635757,102840.0,102830.0,0.64623672]
[1738176487738,0.11635757,102840.0,102830.0,0.83623672]
[1738176488147,0.11324634,102840.0,102830.0,0.83623672]
[1738176489748,0.11424634,102840.0,102830.0,0.83623672]
[1738176490151,0.001,102840.0,102830.0,0.83623672]
[1738176490544,0.00014613,102850.0,102840.0,0.194504]
[1738176490748,0.00014613,102850.0,102840.0,1.00471772]
[1738176490945,0.00014613,102850.0,102840.0,1.09563144]
[1738176491352,0.00014613,102850.0,102840.0,1.00471772]
[1738176493745,0.00014613,102850.0,102840.0,1.09563144]
[1738176493951,0.00014613,102850.0,102840.0,1.00471772]
[1738176494252,0.00014613,102850.0,102840.0,1.09563144]
[1738176494655,0.00014613,102850.0,102840.0,1.00471772]
[1738176495955,0.00014613,102850.0,102840.0,1.09563144]
[1738176497857,0.00014613,102850.0,102840.0,1.00471772]
[1738176498457,0.00014613,102850.0,102840.0,1.09563144]
[1738176499254,0.00014613,102850.0,102840.0,1.10754566]
[1738176505855,0.00014613,102850.0,102840.0,1.01663194]
[1738176506056,0.00014613,102850.0,102840.0,1.10754566]
[1738176509764,0.00014613,102850.0,102840.0,1.01663194]
[1738176509960,0.00014613,102850.0,102840.0,0.92523194]
[1738176510263,0.03144613,102850.0,102840.0,0.92523194]
[1738176511262,0.03144613,102850.0,102840.0,1.01614566]
[1738176511569,0.03144613,102850.0,102840.0,0.92523194]
[1738176512769,0.00014613,102850.0,102840.0,1.01614566]
[1738176512961,0.00014613,102850.0,102840.0,1.04804566]
[1738176514663,0.00014613,102850.0,102840.0,1.08124566]
[1738176515869,0.00014613,102850.0,102840.0,1.38124566]
[1738176516172,0.025,102870.0,102860.0,0.37629344]
[1738176516366,0.025,102870.0,102860.0,1.36053344]
[1738176516566,0.025,102870.0,102860.0,1.39453344]
[1738176517074,0.025,102870.0,102860.0,1.45903344]
[1738176517765,0.017,102870.0,102860.0,1.45903344]
[1738176518169,0.37695769,102890.0,102880.0,0.194429]
[1738176518366,0.37695769,102890.0,102880.0,1.21694272]
[1738176518763,0.37695769,102890.0,102880.0,1.24894272]
[1738176519163,0.34435769,102890.0,102880.0,1.24894272]
[1738176519364,0.34635769,102890.0,102880.0,1.24894272]
[1738176520971,0.34435769,102890.0,102880.0,1.24894272]
[1738176521569,0.025,102890.0,102880.0,1.24894272]
[1738176521774,0.025,102890.0,102880.0,1.25394272]
[1738176524271,0.0584,102890.0,102880.0,1.26538877]
[1738176525476,0.0584,102890.0,102880.0,1.03895977]
[1738176525665,0.091,102890.0,102880.0,1.03895977]
[1738176526975,0.091,102890.0,102880.0,1.23338877]
[1738176534875,0.025,102890.0,102880.0,1.23338877]
[1738176535073,0.025,102890.0,102880.0,1.29868877]
[1738176535275,1e-08,102890.0,102880.0,1.73688022]
[1738176535579,1e-08,102890.0,102880.0,1.43688022]
[1738176538591,0.0634,102920.0,102890.0,0.18182744]
[1738176538776,0.0634,102920.0,102910.0,1.00688572]
[1738176538980,0.0634,102920.0,102910.0,1.115972]
[1738176541384,0.0644,102920.0,102910.0,1.115972]
[1738176541887,0.34966672,102920.0,102910.0,0.9216]
[1738176542088,0.51611372,102920.0,102900.0,0.00014613]
[1738176542288,0.64608572,102910.0,102900.0,0.01014613]
[1738176542591,0.555172,102910.0,102900.0,0.02138349]
[1738176542789,0.555172,102910.0,102900.0,0.01014613]
[1738176542985,0.194372,102910.0,102900.0,0.46185985]
[1738176543191,0.25876,102920.0,102900.0,0.65625085]
[1738176543588,0.34967372,102920.0,102900.0,0.65625085]
[1738176543792,0.25876,102920.0,102900.0,0.65625085]
[1738176544188,0.25876,102920.0,102900.0,0.46185985]
[1738176544486,0.25876,102920.0,102910.0,0.194372]
[1738176544694,0.25876,102920.0,102910.0,0.665172]
[1738176544889,0.25876,102920.0,102910.0,0.11]
[1738176545088,0.25876,102920.0,102910.0,0.304372]
[1738176545294,0.25876,102920.0,102910.0,0.11]
[1738176545489,0.194372,102910.0,102900.0,0.55532313]
[1738176545693,0.194372,102910.0,102900.0,0.76532313]
[1738176545893,0.71047772,102920.0,102900.0,0.76532313]
[1738176546082,0.258764,102920.0,102910.0,0.3608]
[1738176546389,0.0644,102920.0,102910.0,0.76608572]
[1738176546791,0.001,102920.0,102910.0,0.81852572]
[1738176547302,0.001,102920.0,102910.0,0.85092572]
[1738176547499,0.025,102930.0,102910.0,0.76608572]
[1738176547798,0.31025372,102930.0,102920.0,0.3608]
[1738176548005,0.31025372,102930.0,102910.0,0.3608]
[1738176548296,0.31025372,102930.0,102910.0,0.5408]
[1738176548297,0.35006672,102920.0,102910.0,0.5408]
[1738176548488,0.259153,102920.0,102910.0,0.5408]
[1738176548689,0.259153,102920.0,102910.0,0.63171372]
[1738176548998,0.259153,102920.0,102910.0,0.5408]
[1738176549492,0.259153,102920.0,102910.0,0.18]
[1738176550093,0.259153,102920.0,102910.0,0.5408]
[1738176550398,0.259153,102920.0,102910.0,0.55216987]
[1738176550889,0.259153,102920.0,102910.0,0.01136987]
[1738176551091,0.4256,102920.0,102900.0,0.45185985]
[1738176551392,0.0648,102920.0,102910.0,0.555172]
[1738176551987,0.0648,102920.0,102910.0,0.69608572]
[1738176552193,0.0979,102920.0,102910.0,0.69608572]
[1738176557201,0.0331,102920.0,102910.0,0.69608572]
[1738176557593,0.0331,102920.0,102910.0,0.72928572]
[1738176559204,0.025,102930.0,102920.0,0.194353]
[1738176559405,0.025,102930.0,102920.0,0.84606672]
[1738176560507,0.026,102930.0,102920.0,0.84606672]
[1738176561506,0.026,102930.0,102920.0,0.5608]
[1738176561507,0.220335,102930.0,102920.0,0.5608]
[1738176561808,0.220335,102930.0,102910.0,0.45171372]
[1738176562012,0.0327,102920.0,102910.0,0.66171372]
[1738176562806,0.0628,102920.0,102910.0,0.66171372]
[1738176564303,0.257154,102920.0,102910.0,0.66271372]
[1738176564912,0.290354,102920.0,102910.0,0.66271372]
[1738176565100,0.290354,102920.0,102910.0,0.5728]
[1738176565302,0.290354,102920.0,102910.0,0.66371372]
[1738176565703,0.290354,102920.0,102910.0,0.5728]
[1738176567013,0.651154,102920.0,102910.0,0.212]
[1738176567313,0.290354,102920.0,102910.0,0.212]
[1738176568614,0.651154,102920.0,102910.0,0.212]
[1738176569623,0.651154,102920.0,102910.0,0.002]
[1738176570712,0.74206772,102920.0,102910.0,0.002]
[1738176572915,0.194372,102910.0,102900.0,0.00014613]
[1738176573113,0.194391,102900.0,102890.0,0.63160025]
[1738176573315,0.194391,102900.0,102890.0,1e-08]
[1738176573316,0.83131844,102900.0,102890.0,1e-08]
[1738176573516,1.13131844,102900.0,102890.0,1e-08]
[1738176574110,1.13131844,102900.0,102870.0,1.3193431]
[1738176574111,0.048603,102890.0,102860.0,0.34308927]
[1738176574310,0.555248,102870.0,102860.0,0.53755127]
[1738176574515,0.555248,102870.0,102860.0,0.5376974]
[1738176574704,0.650748,102870.0,102860.0,0.5376974]
[1738176575722,0.0955,102870.0,102860.0,0.63761112]
[1738176576015,0.0955,102870.0,102860.0,0.99841112]
[1738176576311,0.289948,102870.0,102860.0,0.99841112]
[1738176576612,0.289948,102870.0,102860.0,1.0186097]
[1738176577714,0.289948,102870.0,102860.0,0.67552043]
[1738176578813,0.289948,102870.0,102860.0,0.63460671]
[1738176579015,0.289948,102870.0,102860.0,0.67552043]
[1738176579716,0.289948,102870.0,102860.0,0.72552043]
[1738176580521,0.289948,102870.0,102860.0,0.58460671]
[1738176580913,0.38086172,102870.0,102860.0,0.39014471]
[1738176581119,0.289948,102870.0,102860.0,0.39014471]
[1738176581321,0.289948,102870.0,102860.0,0.44014471]
[1738176582521,0.289948,102870.0,102860.0,0.02934471]
[1738176582522,0.83257544,102870.0,102860.0,0.02934471]
[1738176582817,0.63812744,102870.0,102840.0,0.3608]
[1738176583017,0.28541072,102850.0,102840.0,0.37161956]
[1738176583319,0.194497,102850.0,102840.0,0.42161956]
[1738176583721,0.194497,102850.0,102840.0,0.70703828]
[1738176583917,0.59582872,102870.0,102840.0,0.70703828]
[1738176584121,0.19461813,102860.0,102840.0,0.70703828]
[1738176584317,0.19461813,102860.0,102840.0,0.73733828]
[1738176584724,0.19461813,102860.0,102840.0,0.74633828]
[1738176584929,0.001,102850.0,102840.0,0.75533828]
[1738176585419,0.001,102850.0,102840.0,0.74633828]
[1738176585715,0.19661813,102860.0,102840.0,0.75533828]
[1738176586226,0.001,102850.0,102840.0,0.74633828]
[1738176586409,0.001,102850.0,102840.0,0.75033828]
[1738176587927,0.19461813,102860.0,102840.0,0.73733828]
[1738176588119,0.19461813,102860.0,102850.0,0.3608]
[1738176588422,0.19461813,102860.0,102850.0,0.4608]
[1738176589424,0.19561813,102860.0,102850.0,0.655286]
[1738176589817,0.00114613,102860.0,102850.0,0.74619972]
[1738176590026,0.00114613,102860.0,102850.0,0.77809972]
[1738176591026,0.09105985,102860.0,102850.0,0.687186]
[1738176591212,0.28652685,102860.0,102850.0,0.5057]
[1738176591414,0.28652685,102860.0,102850.0,0.700186]
[1738176591615,0.28552685,102860.0,102850.0,0.691186]
[1738176591811,0.28552685,102860.0,102850.0,0.694186]
[1738176592018,0.28552685,102860.0,102850.0,0.691186]
[1738176592219,0.00014613,102860.0,102850.0,0.78209972]
[1738176592719,0.00014613,102860.0,102850.0,0.687186]
[1738176594415,0.00014613,102860.0,102850.0,0.691186]
[1738176594924,0.00014613,102860.0,102850.0,0.78209972]
[1738176595722,0.00014613,102860.0,102850.0,0.691186]
[1738176597834,0.00014613,102860.0,102850.0,0.78209972]
[1738176601527,0.35808851,102890.0,102880.0,0.194429]
[1738176601728,0.29458851,102890.0,102880.0,1.22694272]
[1738176601929,0.26138851,102890.0,102880.0,1.22694272]
[1738176602329,0.26138851,102890.0,102880.0,1.25794272]
[1738176603025,0.26738851,102890.0,102880.0,1.25894272]
[1738176603236,0.006,102890.0,102880.0,1.25894272]
[1738176603433,0.11767806,102900.0,102880.0,1.06451372]
[1738176603632,0.11767806,102900.0,102890.0,0.70972372]
[1738176603830,0.11621969,102900.0,102890.0,0.92972372]
[1738176604336,0.11621969,102900.0,102890.0,0.83881]
[1738176604524,0.11621969,102900.0,102890.0,0.92972372]
[1738176604729,0.12521969,102900.0,102890.0,0.93472372]
[1738176604933,0.12521969,102900.0,102890.0,0.84381]
[1738176605140,0.11621969,102900.0,102890.0,0.84381]
[1738176605340,0.11721969,102900.0,102890.0,0.94372372]
[1738176606542,0.11721969,102900.0,102890.0,0.93972372]
[1738176607347,0.00014613,102900.0,102890.0,0.93072372]
[1738176607643,0.00014613,102900.0,102890.0,0.93372372]
[1738176610545,0.00014613,102900.0,102890.0,0.81071]
[1738176610740,0.00014613,102900.0,102890.0,0.90162372]
[1738176611738,0.00014613,102900.0,102890.0,0.6163]
[1738176612039,0.28545085,102900.0,102890.0,0.224]
[1738176612244,0.19453713,102900.0,102890.0,0.004]
[1738176612835,0.28545085,102900.0,102890.0,0.004]
[1738176613031,0.28545085,102900.0,102890.0,0.002]
[1738176613239,0.19453713,102900.0,102890.0,0.002]
[1738176613435,0.19453713,102900.0,102890.0,0.001]
[1738176613639,0.64625085,102900.0,102890.0,0.001]
[1738176614150,0.194429,102880.0,102870.0,0.00014613]
[1738176614442,0.64614272,102880.0,102870.0,0.00014613]
[1738176615339,0.64614272,102880.0,102870.0,0.00314613]
[1738176616439,0.194429,102880.0,102870.0,0.19759413]
[1738176616739,0.194429,102880.0,102870.0,0.28950785]
[1738176617244,0.225029,102880.0,102870.0,0.19859413]
[1738176617548,0.0306,102880.0,102870.0,0.70030785]
[1738176619047,0.0306,102880.0,102870.0,0.73050785]
[1738176620840,0.0306,102880.0,102870.0,0.39514613]
[1738176621045,0.67674272,102880.0,102870.0,0.00414613]
[1738176621950,0.31594272,102880.0,102870.0,0.00414613]
[1738176622144,0.225029,102880.0,102870.0,0.00414613]
[1738176622340,0.225029,102880.0,102870.0,0.00114613]
[1738176622541,0.31594272,102880.0,102870.0,0.00114613]
[1738176622743,0.31594272,102880.0,102870.0,0.00014613]
[1738176623547,0.67674272,102880.0,102870.0,0.00014613]
[1738176625549,0.76765644,102880.0,102870.0,0.00014613]
[1738176625752,0.28538072,102860.0,102850.0,0.194478]
[1738176625945,0.64618072,102860.0,102850.0,0.194478]
[1738176627346,0.64618072,102860.0,102850.0,0.199478]
[1738176627542,0.28538072,102860.0,102850.0,0.199478]
[1738176627946,0.64618072,102860.0,102850.0,0.005]
[1738176629356,0.64618072,102860.0,102850.0,0.014]
[1738176630452,0.45171372,102860.0,102840.0,0.00014613]
[1738176630757,0.70789972,102850.0,102840.0,0.00014613]
[1738176631957,0.70789972,102850.0,102840.0,0.00514613]
[1738176632151,0.70789972,102850.0,102840.0,0.01414613]
[1738176632756,0.70789972,102850.0,102840.0,0.01714613]
[1738176632950,0.70889972,102850.0,102840.0,0.01714613]
[1738176633646,0.74069972,102850.0,102840.0,0.01714613]
[1738176635359,0.73969972,102850.0,102840.0,0.00014613]
[1738176635651,0.73969972,102850.0,102840.0,0.00214613]
[1738176642543,0.75040257,102850.0,102840.0,0.00214613]
[1738176644552,0.83738232,102850.0,102840.0,0.00214613]
[1738176645653,0.92829604,102850.0,102840.0,0.00214613]
[1738176645856,0.83738232,102850.0,102840.0,0.00214613]
[1738176647055,0.88930232,102850.0,102840.0,0.00214613]
[1738176647959,0.91839613,102850.0,102840.0,0.00214613]
[1738176649358,0.86647613,102850.0,102840.0,0.00214613]
[1738176649557,0.88809613,102850.0,102840.0,0.24665013]
[1738176650359,0.88809613,102850.0,102840.0,0.19665013]
[1738176652761,0.88809613,102850.0,102840.0,0.00214613]
[1738176653564,0.97531578,102850.0,102840.0,0.00214613]
[1738176653768,0.97531578,102850.0,102840.0,0.19665013]
[1738176653958,0.97531578,102850.0,102840.0,0.00214613]
[1738176654568,0.97731578,102850.0,102840.0,0.00014613]
[1738176655072,0.97727578,102850.0,102840.0,0.00014613]
[1738176655259,0.97727578,102850.0,102840.0,0.19465013]
[1738176656569,0.97727578,102850.0,102840.0,0.00014613]
[1738176656962,0.91929752,102850.0,102840.0,0.00014613]
[1738176659982,0.94802531,102850.0,102840.0,0.00014613]
[1738176660572,0.73132874,102850.0,102840.0,0.25465013]
[1738176660774,0.17604274,102850.0,102840.0,0.73726385]
[1738176660972,0.17404274,102850.0,102840.0,0.82817757]
[1738176661169,0.19459713,102870.0,102860.0,0.194467]
[1738176661368,0.19459713,102870.0,102860.0,0.75618072]
[1738176661567,0.19459713,102870.0,102860.0,0.81888072]
[1738176661869,0.19459713,102870.0,102860.0,0.727967]
[1738176662265,0.19459713,102870.0,102860.0,0.617967]
[1738176662482,0.64631085,102870.0,102860.0,0.0627]
[1738176662776,0.194467,102860.0,102850.0,0.555276]
[1738176662971,0.194467,102860.0,102850.0,0.618876]
[1738176663970,0.195467,102860.0,102850.0,0.618876]
[1738176664874,0.001,102860.0,102850.0,0.81978972]
[1738176666280,0.001,102860.0,102850.0,0.82996466]
[1738176672783,0.00014613,102870.0,102860.0,0.194467]
[1738176672982,0.00014613,102870.0,102860.0,0.89728072]
[1738176673484,0.00145906,102880.0,102870.0,0.194448]
[1738176673681,0.00145906,102880.0,102870.0,0.92886172]
[1738176673983,0.20377133,102890.0,102870.0,0.82532744]
[1738176674183,0.20231227,102890.0,102880.0,0.64614272]
[1738176674373,0.20231227,102890.0,102880.0,0.86874272]
[1738176674577,0.14569708,102900.0,102890.0,0.19441]
[1738176674778,0.14569708,102900.0,102890.0,0.85612372]
[1738176675779,0.06665801,102920.0,102910.0,0.194372]
[1738176675977,0.22899988,102930.0,102920.0,0.194353]
[1738176676172,0.22839987,102930.0,102920.0,0.64606672]
[1738176676478,0.22839987,102930.0,102920.0,0.67866672]
[1738176676880,0.42273487,102930.0,102920.0,0.226953]
[1738176677584,0.42573487,102930.0,102920.0,0.0326]
[1738176677979,0.43273487,102930.0,102920.0,0.227953]
[1738176678183,0.23839987,102930.0,102920.0,0.71966672]
[1738176679092,0.035,102930.0,102920.0,0.67966672]
[1738176682089,0.035,102930.0,102920.0,0.588753]
[1738176682389,0.229335,102930.0,102920.0,0.588753]
[1738176682792,0.229335,102930.0,102920.0,0.556153]
[1738176682979,0.229335,102930.0,102920.0,0.3618]